Workbook

Sheet Final Decision Forecast_Opex
C2: 2018-03-01 | D2: 2019-06-01 | E2: 2020-06-01 | F2: 2021-06-01 | G2: 2022-06-01 | H2: 2023-06-01 | I2: 2024-06-01 | J2: 2025-06-01
B4: Real labour escalation (BIS/DAE) | F4: 0.008085708976 | G4: 0.009825264614 | H4: 0.01049345619 | I4: 0.01026224748 | J4: 0.009668180339
B5: Productivity Factor | F5: 0.005 | G5: 0.005 | H5: 0.005 | I5: 0.005 | J5: 0.005
B6: Annual increase in total lights | D6: 1500 | E6: 1500 | F6: 1500 | G6: 1500 | H6: 1500 | I6: 1500 | J6: 1500
B9: LED conversion | E9: 0.1 | F9: 0.125 | G9: 0.15 | H9: 0.175 | I9: 0.2 | J9: 0.225
B12: Major LED | F12: 2068 | G12: 5690 | H12: 10335 | I12: 15732 | J12: 21896
B13: Minor LED | F13: 5083 | G13: 14012 | H13: 25500 | I13: 38864 | J13: 54180
B14: Major Conventional | F14: 39848 | G14: 36741 | H14: 32616 | I14: 27744 | J14: 22115
B15: Minor Conventional | F15: 103479 | G15: 95306 | H15: 84597 | I15: 72039 | J15: 57547
B16: TOTAL | C16: 157804 | D16: 159679 | E16: 161179 | F16: =SUM(F12:F15) -> 150478 | G16: =SUM(G12:G15) -> 151749 | H16: 153048 | I16: 154379 | J16: 155738
B17: LED portion of total | F17: =SUM(F12:F13)/F16 -> 0.04752189689 | G17: =SUM(G12:G13)/G16 -> 0.129832816 | H17: =SUM(H12:H13)/H16 -> 0.2341422299 | I17: =SUM(I12:I13)/I16 -> 0.3536491362 | J17: =SUM(J12:J13)/J16 -> 0.4884870744
B20: ACTUAL 2018/19 Operating Costs | C20: Proportion | D20: =9547086+('Forecast_Opex Exp (Rev Prop)'!D64-'Forecast_Opex Exp (Rev Prop)'!D63)*1/(1+A51) -> 9555851.852
B21: Labour proportion | C21: =D21/(D20-D23) -> 0.7625207865 | D21: 6392190.29
B22: Material proportion | C22: =1-C21 -> 0.2374792135 | D22: 1982016.15
B23: Portion incorrectly allocated to SCS | D23: 1172880
B26: Luminaire maintenance total | D26: =6745929/12011644*D20 -> 5366717.339 | E26: =SUM(E27:E28) -> 5366717.339 | F26: =SUM(F27:F28) -> 5379179.338 | G26: 5398783.931 | H26: 5421224.203 | I26: 5442832.602 | J26: 5462089.704
B27: All Luminaires maintenance - Labour | D27: =D26*$C21 -> 4092233.527 | E27: =D27*(1+E$4)*(1-E$5) -> 4092233.527 | F27: =E27*(1+F$4)*(1-F$5) -> 4104695.525 | G27: 4124300.119 | H27: 4146740.39 | I27: 4168348.79 | J27: 4187605.892
B28: All Luminaires maintenance - Materials | D28: =D26*$C22 -> 1274483.813 | E28: =D28 -> 1274483.813 | F28: =E28 -> 1274483.813 | G28: 1274483.813 | H28: 1274483.813 | I28: 1274483.813 | J28: 1274483.813
B30: Maintenance volume | D30: =68411/368980*D16 -> 29605.39885 | E30: =68411/368980*E16 -> 29883.50742 | F30: 27899.48089 | G30: 28135.13155 | H30: 28375.97357 | I30: 28622.74857 | J30: 28874.71494
B31: Maintenance Unit Rate - All | D31: =D26/D30 -> 181.2749548 | E31: =E26/E30 -> 179.5879333 | F31: 192.8057142 | G31: 191.8876378 | H31: 191.0498045 | I31: 190.15758 | J31: 189.1651473
B33: Reduction in Maintenance Cost of Conventional/MV Luminaires
B34: Portion of conventional/MV luminaires requiring maintenance | F34: =F30/SUM(F14:F15) -> 0.1946561422
B35: Adjusted Conventional/MV Luminair Maintenance Volume | F35: =ROUND($F$34*(SUM(F14:F15)),0) -> 27899 | G35: =ROUND($F$34*(SUM(G14:G15)),0) -> 25704 | H35: =ROUND($F$34*(SUM(H14:H15)),0) -> 22816 | I35: =ROUND($F$34*(SUM(I14:I15)),0) -> 19423 | J35: =ROUND($F$34*(SUM(J14:J15)),0) -> 15507
B36: Reduction in maintenance volume due to LEDs | F36: =F30-F35 -> 0.480887853 | G36: 2431.131549 | H36: 5559.97357 | I36: 9199.748574 | J36: 13367.71494
B37: Reduction in Conventional/MV Luminiaire Maintenance | F37: =F31*F36 -> 92.71792594 | G37: 466504.0901 | H37: 1062231.864 | I37: 1749401.926 | J37: 2528705.765
B39: Increase in Maintenance Cost of LEDs Luminaires
B40: Portion of LED luminaires requiring maintenance | D40: 0 | E40: 0 | F40: 0.01 | G40: 0.02 | H40: 0.03 | I40: 0.04 | J40: 0.05
B41: LED Luminair Maintenance Volume | F41: =ROUND(F40*SUM(F12:F13),0) -> 72 | G41: =ROUND(G40*SUM(G12:G13),0) -> 394 | H41: =ROUND(H40*SUM(H12:H13),0) -> 1075 | I41: =ROUND(I40*SUM(I12:I13),0) -> 2184 | J41: =ROUND(J40*SUM(J12:J13),0) -> 3804
B42: Addition of LED Luminaire Maintenance | F42: =F41*F31 -> 13882.01142 | G42: 75603.72928 | H42: 205378.5398 | I42: 415304.1548 | J42: 719584.2203
B44: Total Pole Maintenance | D44: =D20-D26 -> 4189134.513 | E44: =SUM(E45:E46) -> 4189134.513 | F44: =SUM(F45:F46) -> 4199978.039 | G44: 4217036.532 | H44: 4236562.426 | I44: 4255364.485 | J44: 4272120.617
B45: Labour portion | D45: =D44-D46 -> 3560764.336 | E45: =D45*(1+E$4)*(1-E$5) -> 3560764.336 | F45: =E45*(1+F$4)*(1-F$5) -> 3571607.862 | G45: 3588666.355 | H45: 3608192.249 | I45: 3626994.308 | J45: 3643750.44
A46: 0.15 | B46: Material Portion | D46: =D44*A46 -> 628370.1769 | E46: =D46 -> 628370.1769 | F46: =E46 -> 628370.1769 | G46: 628370.1769 | H46: 628370.1769 | I46: 628370.1769 | J46: 628370.1769
B48: Opex Conventional/MV
B49: Pole maintenance | D49: =D20-D55-D50 -> 4189134.513 | F49: =F44*SUM(F14:F15)/F16 -> 4000387.115 | G49: =G44*SUM(G14:G15)/G16 -> 3669526.803 | H49: =H44*SUM(H14:H15)/H16 -> 3244604.252 | I49: 2750458.511 | J49: 2185244.915
B50: Luminaire maintenance | D50: =D26-D37 -> 5366717.339 | F50: =F26-F37 -> 5379086.62 | G50: 4932279.841 | H50: 4358992.339 | I50: 3693430.677 | J50: 2933383.939
A51: 0.35 | B51: Overhead | D51: =SUM(D49:D50)*$A51 -> 3344548.148 | F51: =SUM(F49:F50)*$A51 -> 3282815.807 | G51: 3010632.326 | H51: 2661258.807 | I51: 2255361.216 | J51: 1791520.099
B52: TOTAL | D52: =SUM(D49:D51) -> 12900400 | F52: =SUM(F49:F51) -> 12662289.54 | G52: 11612438.97 | H52: 10264855.4 | I52: 8699250.403 | J52: 6910148.953
B54: Opex LED
B55: Pole maintenance | D55: =D44*D17 -> 0 | F55: 199590.9233 | G55: 547509.7282 | H55: 991958.1734 | I55: 1504905.975 | J55: 2086875.702
B56: Luminaire maintenance | D56: =D42 -> 0 | F56: 13882.01142 | G56: 75603.72928 | H56: 205378.5398 | I56: 415304.1548 | J56: 719584.2203
A57: =A51 -> 0.35 | B57: Overhead | D57: =SUM(D55:D56)*$A57 -> 0 | F57: =SUM(F55:F56)*$A57 -> 74715.52715 | G57: 218089.7101 | H57: 419067.8496 | I57: 672073.5452 | J57: 982260.9727
B58: Total Operating Cost | D58: =SUM(D55:D57) -> 0 | F58: =SUM(F55:F57) -> 288188.4619 | G58: 841203.1676 | H58: 1616404.563 | I58: 2592283.674 | J58: 3788720.895
B60: Opex per Conventional/MV installation | F60: =F52/SUM(F14:F15) -> 88.34545859 | G60: =G52/SUM(G14:G15) -> 87.94170992 | H60: =H52/SUM(H14:H15) -> 87.57437655 | I60: =I52/SUM(I14:I15) -> 87.18168829 | J60: =J52/SUM(J14:J15) -> 86.74335258
B61: Opex per LED installation | F61: =F58/SUM(F12:F13) -> 40.30044216 | G61: =G58/SUM(G12:G13) -> 42.69633375 | H61: =H58/SUM(H12:H13) -> 45.10686655 | I61: =I58/SUM(I12:I13) -> 47.48120145 | J61: =J58/SUM(J12:J13) -> 49.80178893
B63: Total PL Opex | D63: =SUM(D52,D58) -> 12900400 | E63: =SUM(E52,E58) -> 0 | F63: =SUM(F52,F58) -> 12950478 | G63: 12453642.14 | H63: 11881259.96 | I63: 11291534.08 | J63: 10698869.85
B64: RIN | C64: =D63-D64 -> 0 | D64: 12900400
B65: Percentage decline 2020- 2025 | D65: =(F63-J63)/F63 -> 0.1738629382
B68: PTRM Input Data ($M)
B69: PL Opex (Real 2018/19 mid year)
B70: =B48 -> Opex Conventional/MV | F70: =F52/10^6 -> 12.66228954 | G70: =G52/10^6 -> 11.61243897 | H70: =H52/10^6 -> 10.2648554 | I70: =I52/10^6 -> 8.699250403 | J70: =J52/10^6 -> 6.910148953
B71: =B54 -> Opex LED | F71: =F58/10^6 -> 0.2881884619 | G71: =G58/10^6 -> 0.8412031676 | H71: =H58/10^6 -> 1.616404563 | I71: =I58/10^6 -> 2.592283674 | J71: =J58/10^6 -> 3.788720895
B72: Total PL Opex | F72: =SUM(F70:F71) -> 12.950478 | G72: =SUM(G70:G71) -> 12.45364214 | H72: 11.88125996 | I72: 11.29153408 | J72: 10.69886985
B75: Total PL Opex Converted to Real 2019/20 end of year
B76: CPI 2018-19 6months | E76: =(1+E90)^0.5-1 -> 0.00888116902
B77: CPI 2019-20 12 months | E77: =E91 -> 0.01840490798
B78: CPI June 2019 to Dec2020 | E78: =(1+E76)*(1+E77)-1 -> 0.02744953409
B80: =B70 -> Opex Conventional/MV | F80: =F70*(1+$E$78) -> 13.00986349 | G80: =G70*(1+$E$78) -> 11.93119501 | H80: 10.5466209 | I80: 8.938040774 | J80: 7.099829322
B81: =B71 -> Opex LED | F81: =F71*(1+$E$78) -> 0.2960991009 | G81: 0.8642938027 | H81: 1.660774115 | I81: 2.663440654 | J81: 3.892719518
B82: Total PL Opex | F82: =SUM(F80:F81) -> 13.30596259 | G82: =SUM(G80:G81) -> 12.79548881 | H82: 12.20739501 | I82: 11.60148143 | J82: 10.99254884
B84: Difference from Revised Poroposal
B85: =B80 -> Opex Conventional/MV | F85: =F80-'Forecast_Opex Exp (Rev Prop)'!F80 -> 0.05478231698 | G85: =G80-'Forecast_Opex Exp (Rev Prop)'!G80 -> 0.06137595035 | H85: =H80-'Forecast_Opex Exp (Rev Prop)'!H80 -> 0.06567095609 | I85: =I80-'Forecast_Opex Exp (Rev Prop)'!I80 -> 0.0618507863 | J85: =J80-'Forecast_Opex Exp (Rev Prop)'!J80 -> 0.06414989643
B86: =B81 -> Opex LED | F86: =F81-'Forecast_Opex Exp (Rev Prop)'!F81 -> 0.001263113396 | G86: =G81-'Forecast_Opex Exp (Rev Prop)'!G81 -> 0.004528993381 | H86: =H81-'Forecast_Opex Exp (Rev Prop)'!H81 -> 0.01056262524 | I86: =I81-'Forecast_Opex Exp (Rev Prop)'!I81 -> 0.01881946908 | J86: =J81-'Forecast_Opex Exp (Rev Prop)'!J81 -> 0.03595635036
B87: Total PL Opex | F87: =F82-'Forecast_Opex Exp (Rev Prop)'!F82 -> 0.05604543037 | G87: =G82-'Forecast_Opex Exp (Rev Prop)'!G82 -> 0.06590494373 | H87: =H82-'Forecast_Opex Exp (Rev Prop)'!H82 -> 0.07623358132 | I87: =I82-'Forecast_Opex Exp (Rev Prop)'!I82 -> 0.08067025538 | J87: =J82-'Forecast_Opex Exp (Rev Prop)'!J82 -> 0.1001062468
B90: CPI 2018-19 | E90: 0.0178412132
B91: CPI 2019-20 | E91: 0.01840490798

Sheet Forecast_Opex Exp (Rev Prop)
C2: 2018-03-01 | D2: 2019-06-01 | E2: 2020-06-01 | F2: 2021-06-01 | G2: 2022-06-01 | H2: 2023-06-01 | I2: 2024-06-01 | J2: 2025-06-01
B4: Real labour escalation (BIS/DAE) | F4: 0.006849122231 | G4: 0.008642561197 | H4: 0.0091219124 | I4: 0.009385148499 | J4: 0.006992028843
B5: Productivity Factor | F5: 0.005 | G5: 0.005 | H5: 0.005 | I5: 0.005 | J5: 0.005
B6: Annual increase in total lights | D6: 1500 | E6: 1500 | F6: 1500 | G6: 1500 | H6: 1500 | I6: 1500 | J6: 1500
B9: LED conversion | E9: 0.1 | F9: 0.125 | G9: 0.15 | H9: 0.175 | I9: 0.2 | J9: 0.225
B12: Major LED | F12: 2068 | G12: 5690 | H12: 10335 | I12: 15732 | J12: 21896
B13: Minor LED | F13: 5083 | G13: 14012 | H13: 25500 | I13: 38864 | J13: 54180
B14: Major Conventional | F14: 39848 | G14: 36741 | H14: 32616 | I14: 27744 | J14: 22115
B15: Minor Conventional | F15: 103479 | G15: 95306 | H15: 84597 | I15: 72039 | J15: 57547
B16: TOTAL | C16: 157804 | D16: 159679 | E16: 161179 | F16: =SUM(F12:F15) -> 150478 | G16: =SUM(G12:G15) -> 151749 | H16: 153048 | I16: 154379 | J16: 155738
B17: LED portion of total | F17: =SUM(F12:F13)/F16 -> 0.04752189689 | G17: =SUM(G12:G13)/G16 -> 0.129832816 | H17: =SUM(H12:H13)/H16 -> 0.2341422299 | I17: =SUM(I12:I13)/I16 -> 0.3536491362 | J17: =SUM(J12:J13)/J16 -> 0.4884870744
B20: ACTUAL 2018/19 Operating Costs | C20: Proportion | D20: 9547086
B21: Labour proportion | C21: =D21/(D20-D23) -> 0.763318969 | D21: 6392190.29
B22: Material proportion | C22: =1-C21 -> 0.236681031 | D22: 1982016.15
B23: Portion incorrectly allocated to SCS | D23: 1172880
B26: Luminaire maintenance total | D26: =6745929/12011644*D20 -> 5361794.298 | E26: =SUM(E27:E28) -> 5361794.298 | F26: =SUM(F27:F28) -> 5369222.151 | G26: 5383980.154 | H26: 5400753.916 | I26: 5418678.233 | J26: 5426799.37
B27: All Luminaires maintenance - Labour | D27: =D26*$C21 -> 4092759.296 | E27: =D27*(1+E$4)*(1-E$5) -> 4092759.296 | F27: =E27*(1+F$4)*(1-F$5) -> 4100187.149 | G27: 4114945.151 | H27: 4131718.913 | I27: 4149643.231 | J27: 4157764.367
B28: All Luminaires maintenance - Materials | D28: =D26*$C22 -> 1269035.003 | E28: =D28 -> 1269035.003 | F28: =E28 -> 1269035.003 | G28: 1269035.003 | H28: 1269035.003 | I28: 1269035.003 | J28: 1269035.003
B30: Maintenance volume | D30: =68411/368980*D16 -> 29605.39885 | E30: =68411/368980*E16 -> 29883.50742 | F30: 27899.48089 | G30: 28135.13155 | H30: 28375.97357 | I30: 28622.74857 | J30: 28874.71494
B31: Maintenance Unit Rate - All | D31: =D26/D30 -> 181.1086662 | E31: =E26/E30 -> 179.4231923 | F31: 192.4488191 | G31: 191.3614708 | H31: 190.3284094 | I31: 189.3136929 | J31: 187.9429591
B33: Reduction in Maintenance Cost of Conventional/MV Luminaires
B34: Portion of conventional/MV luminaires requiring maintenance | F34: =F30/SUM(F14:F15) -> 0.1946561422
B35: Adjusted Conventional/MV Luminair Maintenance Volume | F35: =ROUND($F$34*(SUM(F14:F15)),0) -> 27899 | G35: =ROUND($F$34*(SUM(G14:G15)),0) -> 25704 | H35: =ROUND($F$34*(SUM(H14:H15)),0) -> 22816 | I35: =ROUND($F$34*(SUM(I14:I15)),0) -> 19423 | J35: =ROUND($F$34*(SUM(J14:J15)),0) -> 15507
B36: Reduction in maintenance volume due to LEDs | F36: =F30-F35 -> 0.480887853 | G36: 2431.131549 | H36: 5559.97357 | I36: 9199.748574 | J36: 13367.71494
B37: Reduction in Conventional/MV Luminiaire Maintenance | F37: =F31*F36 -> 92.54629945 | G37: 465224.9089 | H37: 1058220.926 | I37: 1741638.376 | J37: 2512367.903
B39: Increase in Maintenance Cost of LEDs Luminaires
B40: Portion of LED luminaires requiring maintenance | D40: 0 | E40: 0 | F40: 0.01 | G40: 0.02 | H40: 0.03 | I40: 0.04 | J40: 0.05
B41: LED Luminair Maintenance Volume | F41: =ROUND(F40*SUM(F12:F13),0) -> 72 | G41: =ROUND(G40*SUM(G12:G13),0) -> 394 | H41: =ROUND(H40*SUM(H12:H13),0) -> 1075 | I41: =ROUND(I40*SUM(I12:I13),0) -> 2184 | J41: =ROUND(J40*SUM(J12:J13),0) -> 3804
B42: Addition of LED Luminaire Maintenance | F42: =F41*F31 -> 13856.31498 | G42: 75396.41948 | H42: 204603.0402 | I42: 413461.1053 | J42: 714935.0166
B44: Total Pole Maintenance | D44: =D20-D26 -> 4185291.702 | E44: =SUM(E45:E46) -> 4185291.702 | F44: =SUM(F45:F46) -> 4191748.122 | G44: 4204576.035 | H44: 4219156.083 | I44: 4234736.212 | J44: 4241795.247
B45: Labour portion | D45: =D44-D46 -> 3557497.946 | E45: =D45*(1+E$4)*(1-E$5) -> 3557497.946 | F45: =E45*(1+F$4)*(1-F$5) -> 3563954.366 | G45: 3576782.28 | H45: 3591362.327 | I45: 3606942.457 | J45: 3614001.491
A46: 0.15 | B46: Material Portion | D46: =D44*A46 -> 627793.7552 | E46: =D46 -> 627793.7552 | F46: =E46 -> 627793.7552 | G46: 627793.7552 | H46: 627793.7552 | I46: 627793.7552 | J46: 627793.7552
B48: Opex Conventional/MV
B49: Pole maintenance | D49: =D20-D55-D50 -> 4185291.702 | F49: =F44*SUM(F14:F15)/F16 -> 3992548.299 | G49: =G44*SUM(G14:G15)/G16 -> 3658684.088 | H49: =H44*SUM(H14:H15)/H16 -> 3231273.469 | I49: 2737125.409 | J49: 2169733.096
B50: Luminaire maintenance | D50: =D26-D37 -> 5361794.298 | F50: =F26-F37 -> 5369129.605 | G50: 4918755.245 | H50: 4342532.99 | I50: 3677039.857 | J50: 2914431.467
A51: 0.35 | B51: Overhead | D51: =SUM(D49:D50)*$A51 -> 3341480.1 | F51: =SUM(F49:F50)*$A51 -> 3276587.267 | G51: 3002103.766 | H51: 2650832.261 | I51: 2244957.843 | J51: 1779457.597
B52: TOTAL | D52: =SUM(D49:D51) -> 12888566.1 | F52: =SUM(F49:F51) -> 12638265.17 | G52: 11579543.1 | H52: 10224638.72 | I52: 8659123.109 | J52: 6863622.161
B54: Opex LED
B55: Pole maintenance | D55: =D44*D17 -> 0 | F55: 199199.822 | G55: 545891.9468 | H55: 987882.6134 | I55: 1497610.804 | J55: 2072062.15
B56: Luminaire maintenance | D56: =D42 -> 0 | F56: 13856.31498 | G56: 75396.41948 | H56: 204603.0402 | I56: 413461.1053 | J56: 714935.0166
A57: =A51 -> 0.35 | B57: Overhead | D57: =SUM(D55:D56)*$A57 -> 0 | F57: =SUM(F55:F56)*$A57 -> 74569.64795 | G57: 217450.9282 | H57: 417369.9788 | I57: 668875.1681 | J57: 975449.0085
B58: Total Operating Cost | D58: =SUM(D55:D57) -> 0 | F58: =SUM(F55:F57) -> 287625.7849 | G58: 838739.2945 | H58: 1609855.632 | I58: 2579947.077 | J58: 3762446.175
B60: Opex per Conventional/MV installation | F60: =F52/SUM(F14:F15) -> 88.17783929 | G60: =G52/SUM(G14:G15) -> 87.69258748 | H60: =H52/SUM(H14:H15) -> 87.23126889 | I60: =I52/SUM(I14:I15) -> 86.77954269 | J60: =J52/SUM(J14:J15) -> 86.15930005
B61: Opex per LED installation | F61: =F58/SUM(F12:F13) -> 40.22175709 | G61: =G58/SUM(G12:G13) -> 42.57127675 | H61: =H58/SUM(H12:H13) -> 44.9241142 | I61: =I58/SUM(I12:I13) -> 47.25523989 | J61: =J58/SUM(J12:J13) -> 49.45641432
B63: Total PL Opex | D63: =SUM(D52,D58) -> 12888566.1 | E63: =SUM(E52,E58) -> 0 | F63: =SUM(F52,F58) -> 12925890.96 | G63: 12418282.39 | H63: 11834494.35 | I63: 11239070.19 | J63: 10626068.34
B64: RIN | C64: =D63-D64 -> -11833.9 | D64: 12900400
B65: Percentage decline 2020- 2025 | D65: =(F63-J63)/F63 -> 0.1779237213
B68: PTRM Input Data ($M)
B69: PL Opex (Real 2018/19 mid year)
B70: =B48 -> Opex Conventional/MV | F70: =F52/10^6 -> 12.63826517 | G70: =G52/10^6 -> 11.5795431 | H70: =H52/10^6 -> 10.22463872 | I70: =I52/10^6 -> 8.659123109 | J70: =J52/10^6 -> 6.863622161
B71: =B54 -> Opex LED | F71: =F58/10^6 -> 0.2876257849 | G71: =G58/10^6 -> 0.8387392945 | H71: =H58/10^6 -> 1.609855632 | I71: =I58/10^6 -> 2.579947077 | J71: =J58/10^6 -> 3.762446175
B72: Total PL Opex | F72: =SUM(F70:F71) -> 12.92589096 | G72: =SUM(G70:G71) -> 12.41828239 | H72: 11.83449435 | I72: 11.23907019 | J72: 10.62606834
B75: Total PL Opex Converted to Real 2019/20 end of year
B76: CPI June 2019 6months | E76: =((1.59292035398231%+1)^0.5)-1 -> 0.007933134459
B77: CPI June 2020 12 months | E77: 0.017
B78: CPI June 2019 to Dec2020 | E78: =(1+E76)*(1+E77)-1 -> 0.02506799774
B80: =B70 -> Opex Conventional/MV | F80: =F70*(1+$E$78) -> 12.95508117 | G80: =G70*(1+$E$78) -> 11.86981906 | H80: 10.48094994 | I80: 8.876189987 | J80: 7.035679426
B81: =B71 -> Opex LED | F81: =F71*(1+$E$78) -> 0.2948359875 | G81: =G71*(1+$E$78) -> 0.8597648093 | H81: 1.65021149 | I81: 2.644621185 | J81: 3.856763168
B82: Total PL Opex | F82: =SUM(F80:F81) -> 13.24991716 | G82: =SUM(G80:G81) -> 12.72958387 | H82: 12.13116143 | I82: 11.52081117 | J82: 10.89244259
